Cogmind - Beta 17 @@@ ROGUE MODE // 2026.06.27 @ 16:14:38 Player: 3.14 Result: Destroyed by W0-74V(R) with Subdweller Machine Gun Performance ------------- Evolutions (0) 0 Regions Visited (2) 400 Robots Destroyed (32) 160 Value Destroyed (922) 922 Prototype IDs (1) 20 Alien Tech Used (0) 0 Bonus (6530) 6530 TOTAL SCORE: 8032 Bonus ------- Prayed to X0-1V1 5000 Major X0-1V1 Interference 1550 Friendly Fire -20 Cogmind --------- Core Integrity 0/350 Matter 253/300 Energy 405/465 System Corruption 0% Temperature Cool (0) Movement Core (950) Ox18 Location -10/Subcaves Parts ------- > --- POWER (1) -------- Improved Ion Engine > --- PROPULSION (3) --- (None) > --- UTILITY (2) ------ High-capacity Storage Unit X0-1V1's Piety Tracker > --- WEAPON (2) ------- Light EM Pulse Cannon Improved Light Cannon > --- INVENTORY (20) --- Improved Heat Sink Improved Heat Sink Light Armor Plating Light EM Pulse Cannon Light EM Pulse Cannon Light EM Pulse Cannon Assault Rifle Assault Rifle Autogun Autogun Autogun Autogun Subdweller Machine Gun Minigun Improved Light Cannon Mini Grenade Launcher Makeshift Axe Peak State ------------ > --- POWER ------------ Improved Ion Engine > --- PROPULSION ------- Light Treads Light Treads > --- UTILITY ---------- High-capacity Storage Unit X0-1V1's Piety Tracker > --- WEAPON ----------- Autogun Autogun > --- INVENTORY -------- Improved Ion Engine Light Treads Light Treads Improved Heat Sink Improved Heat Sink Light EM Pulse Cannon Light EM Pulse Cannon Assault Rifle Assault Rifle Autogun Autogun Improved Light Cannon Improved Light Cannon Improved Light Cannon Improved Light Cannon Mini Grenade Launcher [Rating: 25] Favorites ----------- Power Ion Engine Engine Ion Engine Propulsion Light Treads Treads Light Treads Utility X0-1V1's Piety Tracker Device X0-1V1's Piety Tracker Storage High-capacity Storage Unit Weapon Autogun Energy Gun Medium Laser Energy Cannon Light EM Pulse Cannon Ballistic Gun Autogun Ballistic Cannon Improved Light Cannon Launcher Mini Grenade Launcher Build | -11 -10 -10 ------- Run | Yrd Mat Sub Slots Evolved . | . . . Power . | . . . Propulsion . | . . . Utility . | . . . Weapon . | . . . Parts Attached 25 | 7 10 8 Power 4 | 1 2 1 Engine 4 | 1 2 1 Core . | . . . Reactor . | . . . Propulsion 5 | 2 1 2 Treads 5 | 2 1 2 Leg . | . . . Wheel . | . . . Hover . | . . . Flight . | . . . Utility 5 | 2 3 . Device 3 | 1 2 . Storage 2 | 1 1 . Processor . | . . . Hackware . | . . . Protection . | . . . Artifact . | . . . Weapon 11 | 2 4 5 Energy Gun 2 | 1 . 1 Energy Cannon 1 | . . 1 Ballistic Gun 4 | 1 2 1 Ballistic Cannon 3 | . 1 2 Launcher 1 | . 1 . Special Weapon . | . . . Impact Weapon . | . . . Slashing Weapon . | . . . Piercing Weapon . | . . . Special Melee Weapon . | . . . Unidentified Prototypes 1 | . 1 . Parts Lost 8 | . . 8 Power 1 | . . 1 Propulsion 5 | . . 5 Utility . | . . . Weapon 2 | . . 2 Highest Loss Streak 4 | . . 4 To Critical Strikes . | . . . Average Backups 13 | 2 10 17 Power . | . 1 . Propulsion 1 | 1 1 1 Utility 1 | . . 2 Weapon 9 | . 7 13 Tool/Special . | . . . Unused Backups 16 | . 4 12 Power 1 | . 1 . Propulsion 2 | . 2 . Utility 2 | . . 2 Weapon 11 | . 1 10 Tool/Special . | . . . Average Slot Usage (%) 97 | . 99 95 Engine 12 | . 13 10 Treads 30 | . 27 34 Device 13 | . 13 12 Storage 13 | . 13 12 Ballistic Gun 18 | . 25 9 Ballistic Cannon 6 | . 1 13 Peak Build Rating 25 | 7 25 25 Average Rating 20 | 4 17 24 On Entrance 10 | . 7 25 Avg Prop Armor Cover (%) . | . . . Naked Turns . | . . . Heaviest Build 56 | 15 54 56 Greatest Support 60 | 40 60 60 Greatest Overweight (x) 2 | . 1 2 Average Overweight (x) . | . . . Largest Inventory Capacity 20 | 8 20 20 Average Capacity 15 | 6 13 20 Most Carried 20 | 4 18 20 Average Carried 13 | 2 10 17 Final Capacity 20 | 8 20 20 Final Carried 17 | 4 17 17 Class Distribution -------------------- 100% | Mutant Dominant Class ---------------- Mutant | -10/Materials Mutant | -10/Subcaves Resources | -11 -10 -10 ----------- Run | Yrd Mat Sub Matter Collected 1100 | 273 311 516 Remotely 130 | 60 70 . Salvage Created 1009 | 99 579 331 Parts 71 | 4 43 24 Haulers Intercepted 2 | . 2 . Recyclers Shooed 1 | . 1 . Parts Field Recycled . | . . . Retrieved Matter . | . . . Parts Self-Destructed 13 | . . 13 Prevented . | . . . Parts Restored . | . . . Kills | -11 -10 -10 ------- Run | Yrd Mat Sub Combat Hostiles Destroyed 28 | . 13 15 Guns 19 | . 13 6 Cannons 9 | . . 9 Classes Destroyed 7 | 1 4 2 Worker 1 | . 1 . Hauler 2 | . 2 . Recycler 1 | 1 . . Swarmer 6 | . 3 3 Grunt 10 | . 10 . Sentry 1 | . . 1 Subdweller 11 | . . 11 Best Kill Streak 5 | 1 3 5 Combat Bots Only 5 | . 3 5 Max Kills in Single Turn 1 | 1 1 1 Gunslinging . | . . . Exploded . | . . . Melee . | . . . Uniques/NPCs Destroyed . | . . . Combat | -11 -10 -10 -------- Run | Yrd Mat Sub Hostile Shots Fired 139 | . 37 102 Missed 41 | . 16 25 Hits 98 | . 21 77 Projectile 98 | . 21 77 Damage Taken 1790 | . 251 1539 Core 403 | . 39 364 Absorbed by Shields . | . . . Core Remaining (%) 100 | 100 . . Volleys Fired 104 | 1 40 63 Largest 2 | 2 2 2 Hottest 93 | 70 46 93 Shots Fired 202 | 2 77 123 Gun 117 | 2 74 41 Cannon 83 | . 1 82 Launcher 2 | . 2 . Special . | . . . Kinetic 185 | 1 75 109 Thermal 9 | 1 . 8 Explosive 2 | . 2 . Electromagnetic 6 | . . 6 Robot Hit Streak 14 | 2 8 14 Robot Miss Streak 4 | . 4 2 Penetration Max . | . . . Secondary Targets 1 | . 1 . Max Gunslinging Chain 1 | . 1 . Shots Hit Robots 132 | 2 42 88 Core Hits 54 | 2 24 28 Critical Kills . | . . . Critical Parts Destroyed . | . . . Critical Strikes 1 | . . 1 Blast 1 | . . 1 Melee Attacks . | . . . Impact . | . . . Slashing . | . . . Piercing . | . . . Sneak Attacks . | . . . Combat Hostiles . | . . . Follow-up Attacks . | . . . Damage Inflicted 2245 | 25 715 1505 Guns 1161 | 25 690 446 Cannons 1059 | . . 1059 Explosions . | . . . Melee . | . . . Ramming 25 | . 25 . Kinetic 2028 | 12 690 1326 Thermal 137 | 13 . 124 Explosive . | . . . Electromagnetic 55 | . . 55 Impact . | . . . Slashing . | . . . Piercing . | . . . Highest Corruption 2 | . 2 . Average Corruption 2 | . 2 . Corruption Purged . | . . . Corruption Blocked . | . . . Effects 6 | . 6 . Message Errors 1 | . 1 . Matter Fused 2 | . 2 . Data Loss (minor) 1 | . 1 . Data Loss (major) 2 | . 2 . Overload Shots . | . . . Overflow Damage . | . . . Projectiles . | . . . Explosions . | . . . Melee . | . . . Knockbacks 10 | . . 10 Impact . | . . . Kinetic 9 | . . 9 Secondary 1 | . . 1 Self-Inflicted Damage . | . . . Shots . | . . . Rammed 3 | . 3 . Targets Rammed 4 | . 4 . Kicked . | . . . Crushed 1 | . 1 . Highest Temperature 22 | 9 22 1 Average Temperature 8 | 6 8 1 Received Heat Transfer 216 | . 123 93 Siege Activations . | . . . Martial Activations . | . . . Shielding Activations . | . . . Robots Disrupted . | . . . Combat Hostiles . | . . . Robots Corrupted . | . . . Combat Hostiles . | . . . Parts Fried . | . . . Impact Corruptions . | . . . Robots Melted . | . . . Combat Hostiles . | . . . Parts Melted . | . . . Heat Transferred 187 | 37 . 150 Parts Sabotaged . | . . . Parts Stolen . | . . . Parts Stripped . | . . . Power Chain Reactions . | . . . Alert | -11 -10 -10 ------- Run | Yrd Mat Sub Maximum Alert Level . | . . . Low Security (%) 100 | 100 100 . Level 1 . | . . . Level 2 . | . . . Level 3 . | . . . Level 4 . | . . . Level 5 . | . . . High Security . | . . . Max Security . | . . . Peak Influence 114 | 5 114 . Initial . | . . . Average 29 | . 31 . Influence Increases 456 | 5 371 80 Destroy 0b10 Robot/C 340 | . 260 80 Destroy 0b10 Robot/NC 20 | 5 15 . Destroy Leader 64 | . 64 . Successful Hack 27 | . 27 . Destroy Structure 5 | . 5 . Influence Decreases 456 | 5 363 88 Entered New Map 4 | . . 4 Time Decay 354 | 5 275 74 Lost Part 10 | . . 10 Purge Threat 88 | . 88 . Squads Dispatched 3 | . 3 . Investigation 1 | . 1 . Extermination . | . . . Reinforcement 2 | . 2 . Assault . | . . . Garrison . | . . . Intercept . | . . . Searches Triggered . | . . . Construction Impeded . | . . . Haulers Reinforced . | . . . Active Scanning Responses . | . . . Cargo Convoy Interrupts . | . . . Stealth | -11 -10 -10 --------- Run | Yrd Mat Sub Distress Signals . | . . . Communications Jammed . | . . . Distress Signals . | . . . Times Spotted 40 | . 20 20 Peak Tracking Total 8 | . 4 8 Tactical Retreats . | . . . Traps | -11 -10 -10 ------- Run | Yrd Mat Sub Traps Triggered 2 | . 2 . Indirectly . | . . . Trap Hack Attempts . | . . . Triggered . | . . . Disarmed . | . . . Reprogrammed . | . . . Reused . | . . . Traps Extracted . | . . . Installed . | . . . Triggered . | . . . Machines | -11 -10 -10 ---------- Run | Yrd Mat Sub Machines Disabled . | . . . Max in Single Turn . | . . . Machines Repaired . | . . . Machines Dismantled . | . . . Machines Sabotaged . | . . . Overloaded Fab Kills . | . . . Hacking | -11 -10 -10 --------- Run | Yrd Mat Sub Machines Accessed 3 | . 3 . Terminals 3 | . 3 . Fabricators . | . . . Repair Stations . | . . . Recycling Units . | . . . Scanalyzers . | . . . Garrison Access . | . . . Total Hacks 12 | . 12 . Successful 9 | . 9 . Failed 3 | . 3 . Catastrophic . | . . . Database Lockouts . | . . . Manual 15 | . 15 . Terminals 12 | . 12 . Fabricators . | . . . Repair Stations . | . . . Recycling Units . | . . . Scanalyzers . | . . . Garrison Access . | . . . Terminal Hacks 4 | . 4 . Robot Analysis 2 | . 2 . Branch Access Points 1 | . 1 . Unreport Threat 1 | . 1 . Fabricator Hacks . | . . . Repair Station Hacks . | . . . Recycling Unit Hacks . | . . . Scanalyzer . | . . . Garrison Access Hacks . | . . . Unauthorized Hacks 5 | . 5 . Terminals 5 | . 5 . Botnet 1 | . 1 . Operators 1 | . 1 . Skim 3 | . 3 . Fabricators . | . . . Repair Stations . | . . . Recycling Units . | . . . Scanalyzers . | . . . Garrison Access . | . . . Data Cores Recovered . | . . . Used . | . . . Hacking Detections 3 | . 3 . Full Trace Events . | . . . Feedback Events . | . . . Feedback Blocked . | . . . Robot Schematics Acquired . | . . . Robots Built . | . . . Authchips . | . . . Time . | . . . Total Robot Build Rating . | . . . Part Schematics Acquired . | . . . Parts Built . | . . . Authchips . | . . . Time . | . . . Total Part Build Rating . | . . . Part Studies Acquired . | . . . Parts Repaired . | . . . Time . | . . . Parts Recycled . | . . . Recycled Matter . | . . . Retrieved Matter . | . . . Retrieved Components . | . . . Parts Scanalyzed . | . . . Part Schematics Acquired . | . . . Parts Damaged . | . . . Bothacking | -11 -10 -10 ------------ Run | Yrd Mat Sub Used RIF Installer . | . . . Robots Hacked . | . . . Non-combat . | . . . Combat . | . . . Robot Hacks Applied . | . . . Relay Couplers Released . | . . . Fabnet Peak Effective % . | . . . Robots Rewired . | . . . Allies Hacked . | . . . Hacks Repelled . | . . . Allies | -11 -10 -10 -------- Run | Yrd Mat Sub Total Allies . | . . . Largest Group . | . . . Highest-Rated Group . | . . . Highest-Rated Ally . | . . . Total Orders . | . . . Ally Attacks . | . . . Total Damage . | . . . Kills . | . . . Allies Corrupted . | . . . Allies Melted . | . . . X0-1V1 Amusement Gains 12 | . 12 . Good Acts 5 | . 2 3 Bad Acts 8 | . 2 6 Intel | -11 -10 -10 ------- Run | Yrd Mat Sub Active Infowar (turns) . | . . . Robot Analysis Total 2 | . 2 . Derelict Logs Recovered 2 | . . 2 Drone Launches . | . . . Drone Recoveries . | . . . Exploration | -11 -10 -10 ------------- Run | Yrd Mat Sub Turns Passed 2176 | 84 1156 936 Spaces Moved 939 | 46 464 429 Core 5 | 5 . . Treads 934 | 41 464 429 Legs . | . . . Wheels . | . . . Hover . | . . . Flight . | . . . Fastest Speed 50 | 50 160 160 Average Speed 174 | 148 183 168 Slowest Speed 320 | 160 240 320 Overloaded Moves . | . . . Propulsion Burnouts . | . . . Robots Hopped . | . . . Potential Cave-ins . | . . . Cave-ins Triggered . | . . . Exploration Rate (%) 29 | 3 52 33 Regions Visited 2 Branch Regions 1 Pre-discovered Areas 1 | . . 1 Known Exits Taken . | . . . Unknown Exits Taken 2 | 1 1 . Scrap Searched 3 | . . 3 Spaces Dug . | . . . Terrain Destroyed 6 | . 6 . Melee . | . . . Projectile . | . . . AOE 6 | . 6 . Terrain Rammed . | . . . Walls Destroyed . | . . . Machines Disabled . | . . . Actions | -11 -10 -10 --------- Run | Yrd Mat Sub Total 1294 | 57 709 528 Wait 178 | . 162 16 Move 937 | 45 463 429 Hop . | . . . Pick Up 30 | 4 19 7 Fast Attach 10 | 7 3 . Attach 9 | . 2 7 Detach . | . . . Swap 6 | . 5 1 Drop 14 | . 11 3 Fire 104 | 1 40 63 Melee . | . . . Ram . | . . . Kick . | . . . Crush 4 | . 4 . Escape Stasis 2 | . . 2 Rewire . | . . . Trap . | . . . Miscellaneous . | . . . Route ------- -11/Scrapyard -10/Materials (discovered 5 exits: [*Mat x2] / Min x2 / [*Sub]) -10/Subcaves History --------- Turn | Location | Event 2 | -11/Scrapyard | Met Revision 17 10 | -11/Scrapyard | Discovered new exit (range 16) 85 | -11/Scrapyard | Entered Materials 269 | -10/Materials | Discovered new exit (range 15) 282 | -10/Materials | Identified exit to Mines 314 | -10/Materials | Build established: Mutant 559 | -10/Materials | Discovered new exit (range 5) 622 | -10/Materials | Prayed at D.C.S.S. Altar Unit 1053 | -10/Materials | X0-1V1 announced a LAN party 1132 | -10/Materials | Discovered new exit (range 8) 1193 | -10/Materials | Propulsion slot count permanently improved by X0-1V1 (+1) 1241 | -10/Materials | Entered Subcaves 1242 | -10/Subcaves | Approached by a straggling Scientist 1289 | -10/Subcaves | Core integrity permanently improved by X0-1V1 (+200) 1291 | -10/Subcaves | Learned location of Zion (-6) 1464 | -10/Subcaves | Energy capacity permanently improved by X0-1V1 (+200; -100 max core) 1716 | -10/Subcaves | Shifting Twisted Machinery released Battle Rifle 1744 | -10/Subcaves | Learned Materials trap positions 1801 | -10/Subcaves | X0-1V1 sent hostile S-10 Pest (x5) 1861 | -10/Subcaves | Shifting Twisted Machinery released Sub. Laser 1991 | -10/Subcaves | A Subdweller sparked back to life 1991 | -10/Subcaves | A Subdweller sparked back to life 1991 | -10/Subcaves | A Subdweller sparked back to life 2009 | -10/Subcaves | Core integrity fell below 50% 2040 | -10/Subcaves | X0-1V1 sent you into danger 2053 | -10/Subcaves | Lost 4 parts (1p2n1w) 2114 | -10/Subcaves | Core integrity fell below 20% 2177 | -10/Subcaves | Destroyed by W0-74V(R) with Subdweller Machine Gun Last Messages --------------- 02117_ X0-1V1 feels inspired! 62-RCR(R) Sub. Machine Gun replaced by Minigun. 02117_ Lgt. Treads destroyed. 02122_ Imp. Light Cannon destroyed. 02129_ 62-RCR(R) destroyed. 02138_ Acquired Lgt. Armor Plating. 02139_ Acquired 1 matter. 02142_ Field strength at 32. 02143_ Field strength at 2. 02144_ Stasis field depleted. 02148_ Acquired Minigun. 02149_ Acquired 13 matter. 02152_ Searching scrap... 02152_ Found Mak. Flight Unit. 02152_ Found 67 Matter. 02153_ Acquired 67 matter. 02158_ Acquired 6 matter. 02165_ Lgt. Treads destroyed. 02166_ W0-74V(R): "WEHOME!" 02177_ X0-1V1 howls with laughter! Map ----- +----------------------------------------------------+ | ?????????????????????????????????????????????????? | | ?????????????????????????????????????????????????? | | ?????????????????????????????????????????????????? | | #????????????????????????????????????????????????? | | #####????????????????????????????????????????????? | | ##???????????????????????????????????????????? | | ###?????????????????????????????????????????? | | # # # #?????????????????????????????????????????? | | #### ##?????????????????????????????????????????? | | ##??###??????????????????????????????????????????? | | ?????????????????????????????????????????????????? | | ?????????????????????????????????????????????????? | | ?????????????????????????????????????????????????? | | ?????????????????????????????????????????????????? | | ?????????????????????????????????????????????????? | | ?????????????????????????????????????????????????? | | ???????????????????####??????????????????????????? | | ?????????????????###""##??##????? #??????????????? | | ?????????????????# "" "#??<##??? ##?????????????? | | ????????????????## "#??$<#?? #?????????????? | | ????????????????#""& "#??< ?? ##????????????? | | #???????????????# "#??&